[Event "*** Titled Tuesday Blitz"]
[Site "Chess.com"]
[Date "2020.04.21"]
[Round "4"]
[White "Oligan22"]
[Black "Leonid_Starozhilov"]
[Result "0-1"]
[WhiteElo "2427"]
[BlackElo "2633"]
[TimeControl "180+1"]
[EndTime "10:40:07 PDT"]
[Termination "Leonid_Starozhilov won by resignation"]

1. e4 {[%clk 0:03:00.9]} 1... d6 {[%clk 0:02:59.7]} 2. d4 {[%clk 0:03:00.6]}
2... Nf6 {[%clk 0:03:00.2]} 3. Nc3 {[%clk 0:03:01.2]} 3... e5 {[%clk 0:03:00.5]}
4. Nf3 {[%clk 0:02:59.6]} 4... Nbd7 {[%clk 0:03:00.6]} 5. Bc4 {[%clk 0:02:58.2]}
5... Be7 {[%clk 0:02:59]} 6. a4 {[%clk 0:02:58.4]} 6... a5 {[%clk 0:02:58.4]} 7.
Ng5 {[%clk 0:02:55.7]} 7... d5 {[%clk 0:02:40.8]} 8. Nxd5 {[%clk 0:02:34]} 8...
Nxd5 {[%clk 0:02:36.4]} 9. Nxf7 {[%clk 0:02:34.2]} 9... Kxf7 {[%clk 0:02:31.9]}
10. Bxd5+ {[%clk 0:02:34.5]} 10... Ke8 {[%clk 0:01:25.6]} 11. Qh5+ {[%clk
0:02:09.5]} 11... g6 {[%clk 0:01:25.1]} 12. Qh6 {[%clk 0:02:08.6]} 12... Nf6
{[%clk 0:00:50.9]} 13. Qg7 {[%clk 0:01:36.5]} 13... Rf8 {[%clk 0:00:37.4]} 14.
Bb3 {[%clk 0:01:36.6]} 14... Qxd4 {[%clk 0:00:29.6]} 15. O-O {[%clk 0:01:36.1]}
15... Bg4 {[%clk 0:00:16]} 16. Bg5 {[%clk 0:01:18.5]} 16... Qd6 {[%clk
0:00:10.6]} 17. f3 {[%clk 0:01:05.7]} 17... Be6 {[%clk 0:00:10.7]} 18. Rad1
{[%clk 0:00:50.3]} 18... Qb6+ {[%clk 0:00:10.1]} 19. Kh1 {[%clk 0:00:50.7]}
19... Bxb3 {[%clk 0:00:10.4]} 20. cxb3 {[%clk 0:00:51.6]} 20... Qe6 {[%clk
0:00:09.4]} 21. Qh6 {[%clk 0:00:42.1]} 21... Ng8 {[%clk 0:00:06.3]} 22. Qh4
{[%clk 0:00:42.3]} 22... Bxg5 {[%clk 0:00:06.5]} 23. Qxg5 {[%clk 0:00:43.2]}
23... Nf6 {[%clk 0:00:06.5]} 24. Qd2 {[%clk 0:00:42]} 24... Kf7 {[%clk
0:00:06.6]} 25. Rc1 {[%clk 0:00:39.4]} 25... c6 {[%clk 0:00:06.4]} 26. Qg5
{[%clk 0:00:31.8]} 26... Kg7 {[%clk 0:00:06.7]} 27. Rc5 {[%clk 0:00:32.5]} 27...
Rae8 {[%clk 0:00:06.5]} 28. Rd1 {[%clk 0:00:29.7]} 28... Re7 {[%clk 0:00:06]}
29. Rxa5 {[%clk 0:00:29.5]} 29... Rfe8 {[%clk 0:00:06.1]} 30. Rc5 {[%clk
0:00:28.8]} 30... Nh5 {[%clk 0:00:05.3]} 31. b4 {[%clk 0:00:24.6]} 31... Qf6
{[%clk 0:00:05.7]} 32. Qd2 {[%clk 0:00:22.2]} 32... Nf4 {[%clk 0:00:06.1]} 33.
g3 {[%clk 0:00:19.8]} 33... Ne6 {[%clk 0:00:06.1]} 34. Rc4 {[%clk 0:00:18.5]}
34... Qxf3+ {[%clk 0:00:05.7]} 35. Kg1 {[%clk 0:00:19.1]} 35... Rd8 {[%clk
0:00:05.5]} 36. Qxd8 {[%clk 0:00:17.7]} 36... Nxd8 {[%clk 0:00:05.5]} 37. Rxd8
{[%clk 0:00:18.6]} 37... Qe3+ {[%clk 0:00:05.2]} 38. Kg2 {[%clk 0:00:18.5]}
38... Qe2+ {[%clk 0:00:05.7]} 0-1

[Event "*** Titled Tuesday Blitz"]
[Site "Chess.com"]
[Date "2020.04.21"]
[Round "4"]
[White "Gordima"]
[Black "MFBerna"]
[Result "1-0"]
[WhiteElo "2719"]
[BlackElo "2370"]
[TimeControl "180+1"]
[EndTime "10:40:09 PDT"]
[Termination "Gordima won by checkmate"]

1. d4 {[%clk 0:03:00.9]} 1... d5 {[%clk 0:02:59.1]} 2. c4 {[%clk 0:03:00.5]}
2... c6 {[%clk 0:02:58.7]} 3. Nf3 {[%clk 0:03:00.3]} 3... Nf6 {[%clk 0:02:58.6]}
4. e3 {[%clk 0:03:00.5]} 4... Bf5 {[%clk 0:02:57.6]} 5. Nc3 {[%clk 0:03:00]}
5... e6 {[%clk 0:02:57.9]} 6. Nh4 {[%clk 0:03:00.3]} 6... Bg6 {[%clk 0:02:56.7]}
7. Nxg6 {[%clk 0:02:58.1]} 7... hxg6 {[%clk 0:02:57.6]} 8. Qb3 {[%clk
0:02:58.4]} 8... Qb6 {[%clk 0:02:57.3]} 9. g3 {[%clk 0:02:49.3]} 9... Nbd7
{[%clk 0:02:55.7]} 10. Bg2 {[%clk 0:02:45]} 10... Be7 {[%clk 0:02:55.8]} 11. Bd2
{[%clk 0:02:42.7]} 11... O-O {[%clk 0:02:44.9]} 12. O-O {[%clk 0:02:29.1]} 12...
dxc4 {[%clk 0:02:19.7]} 13. Qxc4 {[%clk 0:02:28.5]} 13... Qxb2 {[%clk
0:02:08.4]} 14. Qd3 {[%clk 0:02:23.8]} 14... Qb6 {[%clk 0:01:57.4]} 15. Rab1
{[%clk 0:02:22.2]} 15... Qc7 {[%clk 0:01:57.5]} 16. Rfc1 {[%clk 0:02:22.8]}
16... Rad8 {[%clk 0:01:34.5]} 17. Qc2 {[%clk 0:02:09.4]} 17... e5 {[%clk
0:01:26.5]} 18. Qa4 {[%clk 0:02:04.4]} 18... exd4 {[%clk 0:01:22.8]} 19. exd4
{[%clk 0:02:05.3]} 19... Qb8 {[%clk 0:00:36.1]} 20. Bf4 {[%clk 0:01:35.1]} 20...
Qa8 {[%clk 0:00:36]} 21. Re1 {[%clk 0:01:27]} 21... Rfe8 {[%clk 0:00:32]} 22.
Qb3 {[%clk 0:01:24.5]} 22... Nb6 {[%clk 0:00:30.8]} 23. Be5 {[%clk 0:01:24.8]}
23... Qc8 {[%clk 0:00:29.4]} 24. a4 {[%clk 0:01:24.5]} 24... Nbd5 {[%clk
0:00:28.1]} 25. Nxd5 {[%clk 0:01:21]} 25... Nxd5 {[%clk 0:00:29]} 26. Qxb7
{[%clk 0:01:20.8]} 26... Qxb7 {[%clk 0:00:29.9]} 27. Rxb7 {[%clk 0:01:20.9]}
27... a5 {[%clk 0:00:26.4]} 28. Bxd5 {[%clk 0:00:56.3]} 28... Rxd5 {[%clk
0:00:22.7]} 29. Bf4 {[%clk 0:00:14.6]} 29... Kf8 {[%clk 0:00:22.7]} 30. Rc7
{[%clk 0:00:06.5]} 30... Rxd4 {[%clk 0:00:14.2]} 31. Rxc6 {[%clk 0:00:05.4]}
31... Rxa4 {[%clk 0:00:09.6]} 32. Rc7 {[%clk 0:00:04.5]} 32... Bf6 {[%clk
0:00:05]} 33. Bd6+ {[%clk 0:00:04.3]} 33... Be7 {[%clk 0:00:02.4]} 34. Rexe7
{[%clk 0:00:04.2]} 34... Rxe7 {[%clk 0:00:02.4]} 35. Rc8# {[%clk 0:00:04.6]} 1-0

[Event "*** Titled Tuesday Blitz"]
[Site "Chess.com"]
[Date "2020.04.21"]
[Round "4"]
[White "Chessmasterzt"]
[Black "sganerdene"]
[Result "0-1"]
[WhiteElo "2491"]
[BlackElo "2665"]
[TimeControl "180+1"]
[EndTime "10:40:10 PDT"]
[Termination "sganerdene won on time"]

1. Nf3 {[%clk 0:03:00.9]} 1... Nf6 {[%clk 0:02:59.6]} 2. c4 {[%clk 0:03:00.2]}
2... g6 {[%clk 0:02:59.7]} 3. Nc3 {[%clk 0:02:59.8]} 3... Bg7 {[%clk 0:03:00]}
4. e4 {[%clk 0:02:59.9]} 4... d6 {[%clk 0:03:00.5]} 5. d4 {[%clk 0:03:00.4]}
5... O-O {[%clk 0:03:00.8]} 6. Be2 {[%clk 0:03:00.8]} 6... Na6 {[%clk
0:03:01.3]} 7. O-O {[%clk 0:03:01.2]} 7... e5 {[%clk 0:03:01.8]} 8. d5 {[%clk
0:03:01]} 8... Nh5 {[%clk 0:03:00.9]} 9. g3 {[%clk 0:02:53.1]} 9... Bh3 {[%clk
0:02:58.9]} 10. Re1 {[%clk 0:02:52.7]} 10... Bg4 {[%clk 0:02:58.9]} 11. Nh4
{[%clk 0:02:44.5]} 11... Bxe2 {[%clk 0:02:58.2]} 12. Qxe2 {[%clk 0:02:43.7]}
12... Bf6 {[%clk 0:02:54.2]} 13. Ng2 {[%clk 0:02:30.1]} 13... Ng7 {[%clk
0:02:53.5]} 14. Be3 {[%clk 0:02:09.2]} 14... Be7 {[%clk 0:02:51.8]} 15. f4
{[%clk 0:02:06.7]} 15... Bf6 {[%clk 0:02:50.6]} 16. Rf1 {[%clk 0:02:04.6]} 16...
exf4 {[%clk 0:02:50.4]} 17. gxf4 {[%clk 0:02:03.8]} 17... Qe7 {[%clk 0:02:50.2]}
18. Qc2 {[%clk 0:01:37.5]} 18... Rfe8 {[%clk 0:02:46.6]} 19. Rae1 {[%clk
0:01:36.2]} 19... Nh5 {[%clk 0:01:46.5]} 20. Bf2 {[%clk 0:01:14.1]} 20... Qd7
{[%clk 0:01:46.6]} 21. e5 {[%clk 0:01:06.4]} 21... dxe5 {[%clk 0:01:46.5]} 22.
Ne4 {[%clk 0:01:06.8]} 22... Bg7 {[%clk 0:01:46.5]} 23. Bh4 {[%clk 0:00:55.2]}
23... f5 {[%clk 0:01:36.3]} 24. Ng5 {[%clk 0:00:46.4]} 24... e4 {[%clk
0:01:36.4]} 25. Ne6 {[%clk 0:00:45.3]} 25... Rxe6 {[%clk 0:01:36.5]} 26. dxe6
{[%clk 0:00:44.6]} 26... Qxe6 {[%clk 0:01:37]} 27. Bf2 {[%clk 0:00:38.7]} 27...
Re8 {[%clk 0:01:24.2]} 28. a3 {[%clk 0:00:36.3]} 28... Nf6 {[%clk 0:01:18]} 29.
Ne3 {[%clk 0:00:31.1]} 29... Qd6 {[%clk 0:01:15.3]} 30. b4 {[%clk 0:00:13.2]}
30... Qxf4 {[%clk 0:01:10.3]} 31. Bg3 {[%clk 0:00:13.6]} 31... Qg5 {[%clk
0:01:07.6]} 32. c5 {[%clk 0:00:14]} 32... Nh5 {[%clk 0:01:04]} 33. Qf2 {[%clk
0:00:06.5]} 33... f4 {[%clk 0:01:03.1]} 34. Kh1 {[%clk 0:00:05]} 34... Rf8
{[%clk 0:00:52.8]} 35. Bh4 {[%clk 0:00:04.9]} 35... Qe5 {[%clk 0:00:48.4]} 36.
Qa2+ {[%clk 0:00:04.7]} 36... Kh8 {[%clk 0:00:47.6]} 37. Nc4 {[%clk 0:00:03.8]}
37... Qe6 {[%clk 0:00:45.4]} 38. c6 {[%clk 0:00:04.1]} 38... b5 {[%clk
0:00:44.7]} 39. Qc2 {[%clk 0:00:03.2]} 39... bxc4 {[%clk 0:00:41.3]} 40. Rxe4
{[%clk 0:00:02.6]} 40... Qxc6 {[%clk 0:00:37.4]} 41. Kg1 {[%clk 0:00:02.5]}
41... c3 {[%clk 0:00:35.7]} 42. Rfxf4 {[%clk 0:00:02.4]} 42... Nxf4 {[%clk
0:00:35.3]} 43. Rxf4 {[%clk 0:00:02.7]} 43... Rxf4 {[%clk 0:00:34.9]} 44. Qg2
{[%clk 0:00:03]} 44... Qxg2+ {[%clk 0:00:34.3]} 45. Kxg2 {[%clk 0:00:03.9]}
45... c2 {[%clk 0:00:34.9]} 0-1

[Event "*** Titled Tuesday Blitz"]
[Site "Chess.com"]
[Date "2020.04.21"]
[Round "4"]
[White "yamalchess"]
[Black "yavrukurt40"]
[Result "0-1"]
[WhiteElo "2541"]
[BlackElo "2784"]
[TimeControl "180+1"]
[EndTime "10:40:11 PDT"]
[Termination "yavrukurt40 won on time"]

1. d4 {[%clk 0:03:00.9]} 1... g6 {[%clk 0:02:58.5]} 2. h4 {[%clk 0:02:59.6]}
2... Nf6 {[%clk 0:02:56.5]} 3. Nc3 {[%clk 0:02:58.1]} 3... d5 {[%clk 0:02:56.7]}
4. Bg5 {[%clk 0:02:57.9]} 4... Bg7 {[%clk 0:02:56.8]} 5. e3 {[%clk 0:02:56.7]}
5... h6 {[%clk 0:02:55.8]} 6. Bf4 {[%clk 0:02:55.9]} 6... c6 {[%clk 0:02:54.4]}
7. Bd3 {[%clk 0:02:54.9]} 7... Nbd7 {[%clk 0:02:51.5]} 8. Nf3 {[%clk 0:02:54.4]}
8... c5 {[%clk 0:02:05.5]} 9. Ne5 {[%clk 0:02:39]} 9... Nxe5 {[%clk 0:01:47.9]}
10. Bxe5 {[%clk 0:02:36.2]} 10... c4 {[%clk 0:01:44.1]} 11. Be2 {[%clk
0:02:35.9]} 11... Be6 {[%clk 0:01:36.1]} 12. h5 {[%clk 0:02:25.1]} 12... g5
{[%clk 0:01:35.8]} 13. Qd2 {[%clk 0:02:03.2]} 13... Kf8 {[%clk 0:01:29.6]} 14.
g3 {[%clk 0:01:46.2]} 14... b5 {[%clk 0:01:29.3]} 15. a3 {[%clk 0:01:43.3]}
15... a5 {[%clk 0:01:14.9]} 16. Bf3 {[%clk 0:01:41.7]} 16... b4 {[%clk
0:01:13.1]} 17. axb4 {[%clk 0:01:37.7]} 17... axb4 {[%clk 0:01:14]} 18. Rxa8
{[%clk 0:01:33.8]} 18... Qxa8 {[%clk 0:01:14.9]} 19. Nd1 {[%clk 0:01:33.1]}
19... Qb7 {[%clk 0:01:07.4]} 20. Bg2 {[%clk 0:00:57.7]} 20... Ne4 {[%clk
0:01:07.3]} 21. Bxe4 {[%clk 0:00:47.8]} 21... dxe4 {[%clk 0:01:06.5]} 22. O-O
{[%clk 0:00:22.1]} 22... f6 {[%clk 0:01:03.7]} 23. d5 {[%clk 0:00:19.3]} 23...
Bxd5 {[%clk 0:00:55.5]} 24. Bd4 {[%clk 0:00:18.4]} 24... Kf7 {[%clk 0:00:56.2]}
25. Bc5 {[%clk 0:00:17.8]} 25... Rb8 {[%clk 0:00:52.3]} 26. Bxb4 {[%clk
0:00:17.7]} 26... Be6 {[%clk 0:00:51.6]} 27. Ba3 {[%clk 0:00:15.6]} 27... Bg4
{[%clk 0:00:51.7]} 28. Nc3 {[%clk 0:00:14.7]} 28... Bxh5 {[%clk 0:00:51.2]} 29.
Qd5+ {[%clk 0:00:12.6]} 29... Qxd5 {[%clk 0:00:50.3]} 30. Nxd5 {[%clk
0:00:12.6]} 30... Bf3 {[%clk 0:00:48.1]} 31. Nxe7 {[%clk 0:00:11.4]} 31... Rb5
{[%clk 0:00:46.3]} 32. Nc6 {[%clk 0:00:10.8]} 32... f5 {[%clk 0:00:34.6]} 33.
Ra1 {[%clk 0:00:06]} 33... Bxb2 {[%clk 0:00:33.6]} 34. Bxb2 {[%clk 0:00:05]}
34... Rxb2 {[%clk 0:00:34.5]} 35. Nd4 {[%clk 0:00:04.4]} 35... Bg4 {[%clk
0:00:29.8]} 36. Kf1 {[%clk 0:00:03.8]} 36... h5 {[%clk 0:00:28.4]} 37. Ke1
{[%clk 0:00:03.9]} 37... h4 {[%clk 0:00:28.6]} 38. gxh4 {[%clk 0:00:04.1]} 38...
gxh4 {[%clk 0:00:29.5]} 39. Kd2 {[%clk 0:00:04.3]} 39... Rb8 {[%clk 0:00:30.2]}
40. Ra7+ {[%clk 0:00:02.6]} 40... Kf6 {[%clk 0:00:30.7]} 41. Rh7 {[%clk
0:00:01.6]} 41... h3 {[%clk 0:00:30]} 0-1

[Event "*** Titled Tuesday Blitz"]
[Site "Chess.com"]
[Date "2020.04.21"]
[Round "4"]
[White "chito89"]
[Black "Mikhail_Golubev"]
[Result "1-0"]
[WhiteElo "2760"]
[BlackElo "2530"]
[TimeControl "180+1"]
[EndTime "10:40:11 PDT"]
[Termination "chito89 won by resignation"]

1. Nf3 {[%clk 0:02:55.9]} 1... d6 {[%clk 0:02:59.5]} 2. d4 {[%clk 0:02:53]} 2...
Nf6 {[%clk 0:02:59]} 3. Nc3 {[%clk 0:02:50.7]} 3... Nbd7 {[%clk 0:02:57.9]} 4.
e4 {[%clk 0:02:47.5]} 4... e5 {[%clk 0:02:57.6]} 5. Bc4 {[%clk 0:02:48.1]} 5...
Be7 {[%clk 0:02:56.1]} 6. O-O {[%clk 0:02:48.1]} 6... O-O {[%clk 0:02:55.6]} 7.
Re1 {[%clk 0:02:48.5]} 7... c6 {[%clk 0:02:53.1]} 8. a4 {[%clk 0:02:48.4]} 8...
a5 {[%clk 0:02:45]} 9. h3 {[%clk 0:02:48]} 9... exd4 {[%clk 0:02:41]} 10. Nxd4
{[%clk 0:02:47.9]} 10... Nc5 {[%clk 0:02:41]} 11. Bf4 {[%clk 0:02:47.5]} 11...
Nfxe4 {[%clk 0:02:21.2]} 12. Nxe4 {[%clk 0:02:32.7]} 12... Nxe4 {[%clk 0:02:21]}
13. Rxe4 {[%clk 0:02:33.3]} 13... d5 {[%clk 0:02:21.2]} 14. Rxe7 {[%clk
0:02:28.2]} 14... Qxe7 {[%clk 0:02:19.9]} 15. Bd3 {[%clk 0:02:11.2]} 15... Qf6
{[%clk 0:02:14.6]} 16. Qd2 {[%clk 0:01:38]} 16... h6 {[%clk 0:02:02.2]} 17. Re1
{[%clk 0:01:31]} 17... Bd7 {[%clk 0:02:00.6]} 18. Be5 {[%clk 0:01:26.9]} 18...
Qd8 {[%clk 0:01:44.7]} 19. Re3 {[%clk 0:01:01.8]} 19... Re8 {[%clk 0:01:37.5]}
20. Nf3 {[%clk 0:01:01.2]} 20... Qb6 {[%clk 0:01:26.8]} 21. Qc3 {[%clk
0:00:50.7]} 21... f6 {[%clk 0:01:09.3]} 22. Bd4 {[%clk 0:00:49.6]} 22... Qb4
{[%clk 0:01:08.6]} 23. Qxb4 {[%clk 0:00:43.2]} 23... axb4 {[%clk 0:01:08.2]} 24.
b3 {[%clk 0:00:43.7]} 24... Rxe3 {[%clk 0:00:59.3]} 25. Bxe3 {[%clk 0:00:42.1]}
25... b5 {[%clk 0:00:21.8]} 26. axb5 {[%clk 0:00:41.2]} 26... cxb5 {[%clk
0:00:22]} 27. Bc5 {[%clk 0:00:39.7]} 27... Ra1+ {[%clk 0:00:21.4]} 28. Kh2
{[%clk 0:00:39.2]} 28... Kf7 {[%clk 0:00:17]} 29. Nd4 {[%clk 0:00:37]} 29... Ra8
{[%clk 0:00:15.6]} 30. Bxb4 {[%clk 0:00:35.4]} 30... Rb8 {[%clk 0:00:15]} 31.
Bd6 {[%clk 0:00:34]} 31... Rb6 {[%clk 0:00:14.1]} 32. Bc5 {[%clk 0:00:33.2]}
32... Rb7 {[%clk 0:00:13.8]} 33. b4 {[%clk 0:00:33.4]} 33... Rb8 {[%clk
0:00:13.3]} 34. g4 {[%clk 0:00:29.6]} 34... Rb7 {[%clk 0:00:12.9]} 35. Kg3
{[%clk 0:00:29.7]} 35... Rb8 {[%clk 0:00:12.1]} 36. h4 {[%clk 0:00:27.1]} 36...
Rb7 {[%clk 0:00:11.1]} 37. h5 {[%clk 0:00:27.3]} 37... Rb8 {[%clk 0:00:09.7]}
38. Kf4 {[%clk 0:00:27.5]} 38... Rb7 {[%clk 0:00:08.1]} 39. Bg6+ {[%clk
0:00:27.5]} 39... Kg8 {[%clk 0:00:07.3]} 40. Nf5 {[%clk 0:00:25.6]} 40... Bxf5
{[%clk 0:00:06]} 41. Kxf5 {[%clk 0:00:23.2]} 41... Rb6 {[%clk 0:00:06.3]} 42.
Bxb6 {[%clk 0:00:22]} 1-0

[Event "*** Titled Tuesday Blitz"]
[Site "Chess.com"]
[Date "2020.04.21"]
[Round "4"]
[White "gena217"]
[Black "Kezin_Roman"]
[Result "1/2-1/2"]
[WhiteElo "2905"]
[BlackElo "2742"]
[TimeControl "180+1"]
[EndTime "10:40:13 PDT"]
[Termination "Game drawn by repetition"]

1. e4 {[%clk 0:03:00.9]} 1... c5 {[%clk 0:02:59.3]} 2. Nf3 {[%clk 0:03:00.8]}
2... e6 {[%clk 0:02:59.4]} 3. g3 {[%clk 0:03:00.4]} 3... Nc6 {[%clk 0:02:58.9]}
4. Bg2 {[%clk 0:03:00.6]} 4... Nf6 {[%clk 0:02:59.3]} 5. d3 {[%clk 0:03:00.5]}
5... Be7 {[%clk 0:02:55.4]} 6. O-O {[%clk 0:03:00.4]} 6... d5 {[%clk 0:02:53.8]}
7. Qe2 {[%clk 0:02:59.3]} 7... O-O {[%clk 0:02:52.8]} 8. e5 {[%clk 0:02:59.6]}
8... Nd7 {[%clk 0:02:52.5]} 9. c4 {[%clk 0:03:00.1]} 9... d4 {[%clk 0:02:31.1]}
10. h4 {[%clk 0:02:58.3]} 10... Qc7 {[%clk 0:02:31.3]} 11. Bf4 {[%clk
0:02:57.1]} 11... b6 {[%clk 0:02:31.5]} 12. Nbd2 {[%clk 0:02:55.5]} 12... Bb7
{[%clk 0:02:31.5]} 13. Rfe1 {[%clk 0:02:49.2]} 13... a6 {[%clk 0:02:26.2]} 14.
h5 {[%clk 0:02:41.6]} 14... h6 {[%clk 0:02:25.4]} 15. Nf1 {[%clk 0:02:41]} 15...
b5 {[%clk 0:02:24.7]} 16. b3 {[%clk 0:02:31.8]} 16... bxc4 {[%clk 0:02:24.3]}
17. bxc4 {[%clk 0:02:32.7]} 17... Rfb8 {[%clk 0:02:22.6]} 18. N1h2 {[%clk
0:02:23.4]} 18... Qd8 {[%clk 0:02:20.2]} 19. Ng4 {[%clk 0:02:20.6]} 19... Bf8
{[%clk 0:02:16.7]} 20. Nd2 {[%clk 0:01:57.8]} 20... Ne7 {[%clk 0:02:15.2]} 21.
Ne4 {[%clk 0:01:57.1]} 21... Nf5 {[%clk 0:02:12.5]} 22. Rab1 {[%clk 0:01:49.6]}
22... Bxe4 {[%clk 0:01:41.2]} 23. Bxe4 {[%clk 0:01:47.8]} 23... Rxb1 {[%clk
0:01:41.5]} 24. Rxb1 {[%clk 0:01:48.7]} 24... Rb8 {[%clk 0:01:41.8]} 25. Rxb8
{[%clk 0:01:30]} 25... Qxb8 {[%clk 0:01:40.9]} 26. Bxf5 {[%clk 0:01:30.3]} 26...
exf5 {[%clk 0:01:14.8]} 27. e6 {[%clk 0:01:31.2]} 27... Qe8 {[%clk 0:00:23]} 28.
exd7 {[%clk 0:01:18.3]} 28... Qxe2 {[%clk 0:00:22.4]} 29. Nxh6+ {[%clk
0:01:18.9]} 29... gxh6 {[%clk 0:00:20.8]} 30. d8=Q {[%clk 0:01:18.8]} 30... Kg7
{[%clk 0:00:07.5]} 31. Qd5 {[%clk 0:00:54]} 31... Qxd3 {[%clk 0:00:05]} 32. Be5+
{[%clk 0:00:53.9]} 32... Kg8 {[%clk 0:00:05.1]} 33. Qd8 {[%clk 0:00:47.8]} 33...
Qb1+ {[%clk 0:00:02.7]} 34. Kh2 {[%clk 0:00:46.6]} 34... Qc2 {[%clk 0:00:03.2]}
35. Qf6 {[%clk 0:00:16.2]} 35... Qxf2+ {[%clk 0:00:02.8]} 36. Kh1 {[%clk
0:00:16.6]} 36... Qf1+ {[%clk 0:00:03]} 37. Kh2 {[%clk 0:00:16.8]} 37... Qf2+
{[%clk 0:00:03.9]} 38. Kh1 {[%clk 0:00:16.7]} 38... Qf1+ {[%clk 0:00:04.8]} 39.
Kh2 {[%clk 0:00:17.3]} 39... Qf2+ {[%clk 0:00:05.7]} 1/2-1/2

[Event "*** Titled Tuesday Blitz"]
[Site "Chess.com"]
[Date "2020.04.21"]
[Round "4"]
[White "VerdeNotte"]
[Black "BilodeauA"]
[Result "1-0"]
[WhiteElo "2731"]
[BlackElo "2856"]
[TimeControl "180+1"]
[EndTime "10:40:13 PDT"]
[Termination "VerdeNotte won by resignation"]

1. e4 {[%clk 0:03:00.9]} 1... e5 {[%clk 0:02:59.9]} 2. Nf3 {[%clk 0:03:00.8]}
2... Nc6 {[%clk 0:03:00.6]} 3. d4 {[%clk 0:03:00.9]} 3... exd4 {[%clk
0:02:59.8]} 4. Nxd4 {[%clk 0:03:01.3]} 4... Bc5 {[%clk 0:02:59.6]} 5. Nxc6
{[%clk 0:03:01.2]} 5... bxc6 {[%clk 0:02:59.3]} 6. Nc3 {[%clk 0:03:00]} 6... Ne7
{[%clk 0:02:59.6]} 7. Bd3 {[%clk 0:02:54.1]} 7... d6 {[%clk 0:02:59.6]} 8. Na4
{[%clk 0:02:52.7]} 8... Bb6 {[%clk 0:02:55.8]} 9. O-O {[%clk 0:02:50.4]} 9...
O-O {[%clk 0:02:55.5]} 10. Bg5 {[%clk 0:02:47.9]} 10... Qe8 {[%clk 0:02:52.9]}
11. Qh5 {[%clk 0:02:41.8]} 11... f6 {[%clk 0:02:48]} 12. Qxe8 {[%clk 0:02:41.8]}
12... Rxe8 {[%clk 0:02:48.9]} 13. Bd2 {[%clk 0:02:42]} 13... Be6 {[%clk
0:02:43.4]} 14. Rfe1 {[%clk 0:02:32.8]} 14... Kf7 {[%clk 0:02:38.9]} 15. b4
{[%clk 0:02:29.1]} 15... Ng6 {[%clk 0:02:27.3]} 16. Nxb6 {[%clk 0:02:27.3]}
16... axb6 {[%clk 0:02:27.5]} 17. f4 {[%clk 0:02:27.1]} 17... Bd7 {[%clk
0:02:17.5]} 18. Bc4+ {[%clk 0:02:07.7]} 18... Kf8 {[%clk 0:02:17.9]} 19. a4
{[%clk 0:02:07.6]} 19... Ne7 {[%clk 0:02:06.7]} 20. a5 {[%clk 0:02:05.7]} 20...
Nc8 {[%clk 0:01:44.4]} 21. Bd3 {[%clk 0:01:55.2]} 21... c5 {[%clk 0:01:15.9]}
22. bxc5 {[%clk 0:01:39.7]} 22... dxc5 {[%clk 0:01:13.3]} 23. e5 {[%clk
0:01:35.7]} 23... b5 {[%clk 0:01:08.6]} 24. Bxh7 {[%clk 0:01:31.3]} 24... Kf7
{[%clk 0:01:02.9]} 25. Be4 {[%clk 0:01:23.4]} 25... c6 {[%clk 0:00:51.8]} 26.
Bf3 {[%clk 0:01:23.4]} 26... f5 {[%clk 0:00:45.8]} 27. Be3 {[%clk 0:01:22.1]}
27... c4 {[%clk 0:00:46.3]} 28. Red1 {[%clk 0:01:21.3]} 28... Ke6 {[%clk
0:00:42.1]} 29. Bc5 {[%clk 0:01:18.3]} 29... Ra6 {[%clk 0:00:37.5]} 30. h4
{[%clk 0:01:10]} 30... g6 {[%clk 0:00:37.1]} 31. Rd2 {[%clk 0:01:03.5]} 31...
Rh8 {[%clk 0:00:37.2]} 32. g3 {[%clk 0:00:56.6]} 32... Rh7 {[%clk 0:00:35.8]}
33. Bb4 {[%clk 0:00:52.4]} 33... Ra7 {[%clk 0:00:30.2]} 34. Rad1 {[%clk
0:00:50.9]} 34... Rf7 {[%clk 0:00:22.1]} 35. Rd6+ {[%clk 0:00:42.1]} 35... Nxd6
{[%clk 0:00:21.9]} 36. Rxd6+ {[%clk 0:00:43]} 36... Ke7 {[%clk 0:00:22.5]} 37.
Rxg6+ {[%clk 0:00:38.5]} 37... Kd8 {[%clk 0:00:19.6]} 38. Bc5 {[%clk 0:00:38.9]}
38... Ra6 {[%clk 0:00:17]} 39. e6 {[%clk 0:00:38.9]} 39... Bxe6 {[%clk
0:00:16.6]} 40. Rxe6 {[%clk 0:00:39.2]} 40... Kd7 {[%clk 0:00:17.5]} 41. Rd6+
{[%clk 0:00:31.6]} 41... Kc7 {[%clk 0:00:18]} 42. h5 {[%clk 0:00:30.3]} 42...
Rd7 {[%clk 0:00:15]} 43. Rxd7+ {[%clk 0:00:29.9]} 43... Kxd7 {[%clk 0:00:15.9]}
44. Bb6 {[%clk 0:00:27]} 44... b4 {[%clk 0:00:15.6]} 45. Be2 {[%clk 0:00:25.2]}
1-0